[Event "Titled Tuesday Blitz April 19 Late 2022"]
[White "Tanenbaum, Zachary"]
[Black "Rosen, Eric"]
[WhiteFideId "2060850"]
[BlackFideId "2032562"]
[WhiteElo "2168"]
[BlackElo "2362"]
[Result "1-0"]
[Round "07"]
[TimeControl "180+1"]
[Date "2022.04.19"]
[WhiteClock "0:01:19"]
[BlackClock "0:00:01"]

1. e4 {[%clk 0:03:00]}  c5 {[%clk 0:02:57]} 2. Nf3 {[%clk 0:03:00]}  Nc6 {[%clk 0:02:55]} 3. Nc3 {[%clk 0:03:01]}  e6 {[%clk 0:02:53]} 4. d4 {[%clk 0:03:01]}  cxd4 {[%clk 0:02:54]} 5. Nxd4 {[%clk 0:03:02]}  Qc7 {[%clk 0:02:54]} 6. g3 {[%clk 0:03:02]}  Nf6 {[%clk 0:02:52]} 7. Ndb5 {[%clk 0:03:01]}  Qb8 {[%clk 0:02:52]} 8. Bf4 {[%clk 0:03:01]}  Ne5 {[%clk 0:02:45]} 9. Be2 {[%clk 0:03:01]}  a6 {[%clk 0:02:44]} 10. Qd4 {[%clk 0:03:01]}  d6 {[%clk 0:02:36]} 11. O-O-O {[%clk 0:03:01]}  axb5 {[%clk 0:01:42]} 12. Bxe5 {[%clk 0:03:02]}  b4 {[%clk 0:01:22]} 13. Nb5 {[%clk 0:03:00]}  Bd7 {[%clk 0:01:02]} 14. Bxd6 {[%clk 0:02:48]}  Bxd6 {[%clk 0:00:57]} 15. Nxd6+ {[%clk 0:02:48]}  Ke7 {[%clk 0:00:53]} 16. Qxb4 {[%clk 0:02:48]}  Nd5 {[%clk 0:00:28]} 17. Nf5+ {[%clk 0:02:35]}  Kf6 {[%clk 0:00:28]} 18. exd5 {[%clk 0:02:08]}  Kxf5 {[%clk 0:00:24]} 19. Bd3+ {[%clk 0:01:58]}  Kf6 {[%clk 0:00:22]} 20. Qh4+ {[%clk 0:01:57]}  g5 {[%clk 0:00:15]} 21. Qh6+ {[%clk 0:01:57]}  Ke7 {[%clk 0:00:15]} 22. Qxg5+ {[%clk 0:01:57]}  Kf8 {[%clk 0:00:15]} 23. Qf6 {[%clk 0:01:38]}  Rg8 {[%clk 0:00:14]} 24. Bc4 {[%clk 0:01:36]}  Qd8 {[%clk 0:00:09]} 25. Qxd8+ {[%clk 0:01:35]}  Rxd8 {[%clk 0:00:10]} 26. dxe6 {[%clk 0:01:35]}  fxe6 {[%clk 0:00:09]} 27. Bxe6 {[%clk 0:01:35]}  Rg7 {[%clk 0:00:09]} 28. Rd6 {[%clk 0:01:31]}  Re7 {[%clk 0:00:09]} 29. Rhd1 {[%clk 0:01:31]}  Bxe6 {[%clk 0:00:06]} 30. Rxd8+ {[%clk 0:01:31]}  Kf7 {[%clk 0:00:07]} 31. b3 {[%clk 0:01:30]}  h5 {[%clk 0:00:03]} 32. Re1 {[%clk 0:01:30]}  Rc7 {[%clk 0:00:02]} 33. Rh8 {[%clk 0:01:27]}  Bf5 {[%clk 0:00:02]} 34. Re2 {[%clk 0:01:27]}  Kg7 {[%clk 0:00:01]} 35. Rhe8 {[%clk 0:01:26]}  Rc6 {[%clk 0:00:01]} 36. R8e7+ {[%clk 0:01:26]}  Kf6 {[%clk 0:00:02]} 37. Rxb7 {[%clk 0:01:26]}  h4 {[%clk 0:00:02]} 38. gxh4 {[%clk 0:01:26]}  Kg6 {[%clk 0:00:03]} 39. a4 {[%clk 0:01:23]}  Ra6 {[%clk 0:00:03]} 40. Kb2 {[%clk 0:01:22]}  Bg4 {[%clk 0:00:02]} 41. Rd2 {[%clk 0:01:22]}  Bf3 {[%clk 0:00:02]} 42. Rbd7 {[%clk 0:01:22]}  Kf5 {[%clk 0:00:02]} 43. Rf7+ {[%clk 0:01:22]}  Ke4 {[%clk 0:00:02]} 44. Rd3 {[%clk 0:01:20]}  Bd1 {[%clk 0:00:02]} 45. Rxd1 {[%clk 0:01:21]}  Rc6 {[%clk 0:00:03]} 46. Re1+ {[%clk 0:01:21]}  Kd4 {[%clk 0:00:03]} 47. Rd7+ {[%clk 0:01:21]}  Kc5 {[%clk 0:00:04]} 48. Re5+ {[%clk 0:01:20]}  Kb6 {[%clk 0:00:03]} 49. Red5 {[%clk 0:01:20]}  Ka6 {[%clk 0:00:01]} 50. R5d6 {[%clk 0:01:19]}  Ka5 {[%clk 0:00:01]} 51. Rxc6 {[%clk 0:01:20]}  Kb4 {[%clk 0:00:02]} 52. c3+ {[%clk 0:01:20]}  Ka5 {[%clk 0:00:01]} 53. Rd5# {[%clk 0:01:19]} 1-0


[Site "https://www.chess.com"]

[Event "Titled Tuesday Blitz April 19 Late 2022"]
[White "Wachinger, Guenther"]
[Black "Soysal, Serkan"]
[WhiteFideId "4604261"]
[BlackFideId "6349250"]
[WhiteElo "2212"]
[BlackElo "2440"]
[Result "0-1"]
[Round "07"]
[TimeControl "180+1"]
[Date "2022.04.19"]
[WhiteClock "0:00:53"]
[BlackClock "0:00:51"]

1. e4 {[%clk 0:03:00]}  e5 {[%clk 0:03:00]} 2. Nf3 {[%clk 0:02:59]}  Nc6 {[%clk 0:03:00]} 3. Nc3 {[%clk 0:03:00]}  g6 {[%clk 0:03:00]} 4. Bc4 {[%clk 0:02:56]}  Bg7 {[%clk 0:03:00]} 5. O-O {[%clk 0:02:56]}  Nge7 {[%clk 0:02:56]} 6. Re1 {[%clk 0:02:53]}  O-O {[%clk 0:02:56]} 7. a4 {[%clk 0:02:49]}  d6 {[%clk 0:02:55]} 8. a5 {[%clk 0:02:48]}  a6 {[%clk 0:02:53]} 9. Nd5 {[%clk 0:02:47]}  Nxd5 {[%clk 0:02:39]} 10. exd5 {[%clk 0:02:47]}  Nd4 {[%clk 0:02:34]} 11. Nxd4 {[%clk 0:02:43]}  exd4 {[%clk 0:02:35]} 12. d3 {[%clk 0:02:33]}  Bd7 {[%clk 0:02:25]} 13. b4 {[%clk 0:02:33]}  Qh4 {[%clk 0:02:23]} 14. Bb2 {[%clk 0:02:32]}  Rfe8 {[%clk 0:02:19]} 15. Qf3 {[%clk 0:02:32]}  Bg4 {[%clk 0:02:09]} 16. Qg3 {[%clk 0:02:23]}  Qh5 {[%clk 0:02:01]} 17. h3 {[%clk 0:02:19]}  Bd7 {[%clk 0:02:00]} 18. f3 {[%clk 0:01:50]}  Re5 {[%clk 0:01:07]} 19. Qf2 {[%clk 0:01:26]}  Rg5 {[%clk 0:00:55]} 20. Kf1 {[%clk 0:01:15]}  Bxh3 {[%clk 0:00:54]} 21. Re4 {[%clk 0:00:52]}  Rxg2 {[%clk 0:00:51]} 22. Qxg2 {[%clk 0:00:53]}  Qxf3+ {[%clk 0:00:51]} 0-1


[Site "https://www.chess.com"]

[Event "Titled Tuesday Blitz April 19 Late 2022"]
[White "Alekseenko, Kirill"]
[Black "Nakamura, Hikaru"]
[WhiteFideId "4135539"]
[BlackFideId "2016192"]
[WhiteElo "2682"]
[BlackElo "2850"]
[Result "0-1"]
[Round "08"]
[TimeControl "180+1"]
[Date "2022.04.19"]
[WhiteClock "0:00:02"]
[BlackClock "0:00:13"]

1. e4 {[%clk 0:03:00]}  e5 {[%clk 0:03:00]} 2. Nf3 {[%clk 0:03:01]}  Nc6 {[%clk 0:03:00]} 3. Bb5 {[%clk 0:03:01]}  Nf6 {[%clk 0:03:01]} 4. d3 {[%clk 0:03:01]}  Bc5 {[%clk 0:03:01]} 5. Bxc6 {[%clk 0:03:01]}  dxc6 {[%clk 0:03:02]} 6. Nbd2 {[%clk 0:03:02]}  Be6 {[%clk 0:03:01]} 7. Nb3 {[%clk 0:03:00]}  Bb6 {[%clk 0:03:01]} 8. O-O {[%clk 0:02:53]}  Qe7 {[%clk 0:03:01]} 9. Be3 {[%clk 0:02:48]}  O-O-O {[%clk 0:02:49]} 10. Bxb6 {[%clk 0:02:39]}  cxb6 {[%clk 0:02:47]} 11. Nbd2 {[%clk 0:02:37]}  Nd7 {[%clk 0:02:42]} 12. b3 {[%clk 0:02:18]}  h5 {[%clk 0:02:36]} 13. Nc4 {[%clk 0:02:15]}  f6 {[%clk 0:02:35]} 14. Ne3 {[%clk 0:02:14]}  g5 {[%clk 0:02:34]} 15. Nd2 {[%clk 0:02:09]}  Nf8 {[%clk 0:02:33]} 16. a4 {[%clk 0:02:04]}  Ng6 {[%clk 0:02:33]} 17. Qb1 {[%clk 0:01:25]}  Nf4 {[%clk 0:02:30]} 18. b4 {[%clk 0:01:22]}  Rd4 {[%clk 0:00:32]} 19. b5 {[%clk 0:01:18]}  Rb4 {[%clk 0:00:31]} 20. Qd1 {[%clk 0:01:18]}  Rd8 {[%clk 0:00:27]} 21. a5 {[%clk 0:01:07]}  Rxb5 {[%clk 0:00:23]} 22. axb6 {[%clk 0:01:08]}  a6 {[%clk 0:00:23]} 23. g3 {[%clk 0:01:01]}  Nh3+ {[%clk 0:00:22]} 24. Kg2 {[%clk 0:00:57]}  g4 {[%clk 0:00:23]} 25. Rb1 {[%clk 0:00:40]}  Qc5 {[%clk 0:00:20]} 26. Rxb5 {[%clk 0:00:38]}  cxb5 {[%clk 0:00:19]} 27. Qa1 {[%clk 0:00:29]}  Qxb6 {[%clk 0:00:19]} 28. Rc1 {[%clk 0:00:22]}  Kb8 {[%clk 0:00:18]} 29. Qa3 {[%clk 0:00:19]}  Qd6 {[%clk 0:00:16]} 30. Qa5 {[%clk 0:00:19]}  Rc8 {[%clk 0:00:14]} 31. Rb1 {[%clk 0:00:09]}  h4 {[%clk 0:00:13]} 32. c4 {[%clk 0:00:09]}  hxg3 {[%clk 0:00:13]} 33. cxb5 {[%clk 0:00:08]}  Nf4+ {[%clk 0:00:11]} 34. Kxg3 {[%clk 0:00:06]}  Rh8 {[%clk 0:00:11]} 35. h4 {[%clk 0:00:06]}  Ne2+ {[%clk 0:00:10]} 36. Kg2 {[%clk 0:00:06]}  Nf4+ {[%clk 0:00:10]} 37. Kg1 {[%clk 0:00:05]}  Qc5 {[%clk 0:00:11]} 38. Qa4 {[%clk 0:00:02]}  Ne2+ {[%clk 0:00:12]} 39. Kf1 {[%clk 0:00:01]}  Nc3 {[%clk 0:00:12]} 40. Qc4 {[%clk 0:00:01]}  Bxc4 {[%clk 0:00:12]} 41. bxa6 {[%clk 0:00:02]}  Nxb1 {[%clk 0:00:13]} 0-1


[Site "https://www.chess.com"]

[Event "Titled Tuesday Blitz April 19 Late 2022"]
[White "Araujo Filho, Luiz Antonio Coel"]
[Black "Mirza, Diana"]
[WhiteFideId "2130661"]
[BlackFideId "2503999"]
[WhiteElo "2315"]
[BlackElo "1813"]
[Result "1-0"]
[Round "08"]
[TimeControl "180+1"]
[Date "2022.04.19"]
[WhiteClock "0:00:37"]
[BlackClock "0:00:06"]

1. d4 {[%clk 0:03:00]}  Nf6 {[%clk 0:02:57]} 2. Nf3 {[%clk 0:03:00]}  e6 {[%clk 0:02:57]} 3. e3 {[%clk 0:03:00]}  g6 {[%clk 0:02:47]} 4. b3 {[%clk 0:02:59]}  Bg7 {[%clk 0:02:47]} 5. Bb2 {[%clk 0:03:00]}  O-O {[%clk 0:02:46]} 6. Be2 {[%clk 0:03:00]}  d6 {[%clk 0:02:46]} 7. Nbd2 {[%clk 0:03:01]}  Nbd7 {[%clk 0:02:43]} 8. O-O {[%clk 0:03:01]}  e5 {[%clk 0:02:43]} 9. dxe5 {[%clk 0:03:00]}  dxe5 {[%clk 0:02:43]} 10. Nxe5 {[%clk 0:02:58]}  Ne8 {[%clk 0:02:22]} 11. Nd3 {[%clk 0:02:34]}  Bxb2 {[%clk 0:02:14]} 12. Nxb2 {[%clk 0:02:35]}  Qf6 {[%clk 0:02:14]} 13. Nd3 {[%clk 0:02:34]}  Ne5 {[%clk 0:02:10]} 14. Nxe5 {[%clk 0:02:33]}  Qxe5 {[%clk 0:02:11]} 15. Nf3 {[%clk 0:02:34]}  Qg7 {[%clk 0:02:05]} 16. Qd8 {[%clk 0:02:26]}  b6 {[%clk 0:01:58]} 17. Rad1 {[%clk 0:02:13]}  Bb7 {[%clk 0:01:57]} 18. Qh4 {[%clk 0:02:13]}  Nd6 {[%clk 0:01:53]} 19. c4 {[%clk 0:02:11]}  Nf5 {[%clk 0:01:51]} 20. Qf4 {[%clk 0:02:07]}  Nd6 {[%clk 0:01:36]} 21. Nd4 {[%clk 0:02:01]}  Rad8 {[%clk 0:01:29]} 22. Bf3 {[%clk 0:02:00]}  Bxf3 {[%clk 0:01:28]} 23. Qxf3 {[%clk 0:01:58]}  c5 {[%clk 0:01:25]} 24. Nc6 {[%clk 0:01:21]}  Rd7 {[%clk 0:01:24]} 25. Qf4 {[%clk 0:01:20]}  Rfd8 {[%clk 0:00:53]} 26. Rd5 {[%clk 0:01:07]}  Nb7 {[%clk 0:00:38]} 27. Rxd7 {[%clk 0:01:05]}  Rxd7 {[%clk 0:00:37]} 28. Qb8+ {[%clk 0:01:03]}  Qf8 {[%clk 0:00:35]} 29. Qxf8+ {[%clk 0:00:59]}  Kxf8 {[%clk 0:00:36]} 30. Nxa7 {[%clk 0:00:58]}  Nd6 {[%clk 0:00:31]} 31. Nb5 {[%clk 0:00:54]}  Nxb5 {[%clk 0:00:31]} 32. cxb5 {[%clk 0:00:54]}  Rd2 {[%clk 0:00:30]} 33. Ra1 {[%clk 0:00:54]}  Ke7 {[%clk 0:00:29]} 34. a4 {[%clk 0:00:53]}  Kd6 {[%clk 0:00:28]} 35. Kf1 {[%clk 0:00:52]}  Rb2 {[%clk 0:00:27]} 36. Ra3 {[%clk 0:00:48]}  Kd5 {[%clk 0:00:23]} 37. g3 {[%clk 0:00:42]}  Ke4 {[%clk 0:00:19]} 38. a5 {[%clk 0:00:42]}  Kf3 {[%clk 0:00:16]} 39. Ke1 {[%clk 0:00:39]}  bxa5 {[%clk 0:00:11]} 40. b6 {[%clk 0:00:39]}  Rxf2 {[%clk 0:00:08]} 41. b7 {[%clk 0:00:38]}  Rf1+ {[%clk 0:00:06]} 42. Kxf1 {[%clk 0:00:37]} 1-0


[Site "https://www.chess.com"]

[Event "Titled Tuesday Blitz April 19 Late 2022"]
[White "Babazada, Khazar"]
[Black "Adewumi, Tanitoluwa"]
[WhiteFideId "13413554"]
[BlackFideId "30966396"]
[WhiteElo "2406"]
[BlackElo "2553"]
[Result "1-0"]
[Round "08"]
[TimeControl "180+1"]
[Date "2022.04.19"]
[WhiteClock "0:00:25"]
[BlackClock "0:00:02"]

1. e4 {[%clk 0:03:00]}  c5 {[%clk 0:02:52]} 2. Nf3 {[%clk 0:03:00]}  a6 {[%clk 0:02:49]} 3. d4 {[%clk 0:03:00]}  cxd4 {[%clk 0:02:50]} 4. Nxd4 {[%clk 0:03:00]}  e6 {[%clk 0:02:50]} 5. Bd3 {[%clk 0:02:59]}  Nf6 {[%clk 0:02:43]} 6. O-O {[%clk 0:02:58]}  d6 {[%clk 0:02:36]} 7. Qe2 {[%clk 0:02:58]}  Be7 {[%clk 0:02:34]} 8. c4 {[%clk 0:02:58]}  O-O {[%clk 0:02:34]} 9. Nc3 {[%clk 0:02:58]}  Nc6 {[%clk 0:02:35]} 10. Nxc6 {[%clk 0:02:57]}  bxc6 {[%clk 0:02:35]} 11. Kh1 {[%clk 0:02:56]}  e5 {[%clk 0:02:35]} 12. f4 {[%clk 0:02:52]}  exf4 {[%clk 0:02:35]} 13. Bxf4 {[%clk 0:02:53]}  Ng4 {[%clk 0:02:30]} 14. Rad1 {[%clk 0:02:52]}  Ne5 {[%clk 0:02:27]} 15. Bc2 {[%clk 0:02:51]}  Qa5 {[%clk 0:02:16]} 16. h3 {[%clk 0:02:22]}  Be6 {[%clk 0:02:15]} 17. Bb3 {[%clk 0:02:19]}  Rad8 {[%clk 0:02:07]} 18. Rc1 {[%clk 0:01:58]}  Ng6 {[%clk 0:01:59]} 19. Bg3 {[%clk 0:01:51]}  Bg5 {[%clk 0:01:41]} 20. Rcd1 {[%clk 0:01:46]}  Ne5 {[%clk 0:01:37]} 21. Rf5 {[%clk 0:01:35]}  Bxf5 {[%clk 0:01:34]} 22. exf5 {[%clk 0:01:35]}  Rfe8 {[%clk 0:01:22]} 23. Ne4 {[%clk 0:01:34]}  Bh6 {[%clk 0:01:01]} 24. Nxd6 {[%clk 0:01:21]}  Rxd6 {[%clk 0:00:39]} 25. Rxd6 {[%clk 0:01:22]}  Kf8 {[%clk 0:00:40]} 26. Qd1 {[%clk 0:01:04]}  Bg5 {[%clk 0:00:28]} 27. Qh5 {[%clk 0:00:51]}  h6 {[%clk 0:00:12]} 28. c5 {[%clk 0:00:42]}  Qxc5 {[%clk 0:00:05]} 29. Bxe5 {[%clk 0:00:40]}  g6 {[%clk 0:00:04]} 30. fxg6 {[%clk 0:00:30]}  Qxe5 {[%clk 0:00:04]} 31. Rd1 {[%clk 0:00:29]}  Qg3 {[%clk 0:00:01]} 32. g7+ {[%clk 0:00:25]}  Ke7 {[%clk 0:00:02]} 33. Qxf7# {[%clk 0:00:25]} 1-0


[Site "https://www.chess.com"]

[Event "Titled Tuesday Blitz April 19 Late 2022"]
[White "Bachmann, Axel"]
[Black "Kujawski, Adam"]
[WhiteFideId "3700488"]
[BlackFideId "1100920"]
[WhiteElo "2587"]
[BlackElo "2053"]
[Result "1/2-1/2"]
[Round "08"]
[TimeControl "180+1"]
[Date "2022.04.19"]
[WhiteClock "0:00:03"]
[BlackClock "0:00:01"]

1. d4 {[%clk 0:02:56]}  Nf6 {[%clk 0:02:59]} 2. g3 {[%clk 0:02:56]}  c5 {[%clk 0:02:58]} 3. d5 {[%clk 0:02:55]}  e6 {[%clk 0:02:58]} 4. c4 {[%clk 0:02:56]}  exd5 {[%clk 0:02:58]} 5. cxd5 {[%clk 0:02:57]}  d6 {[%clk 0:02:58]} 6. Nc3 {[%clk 0:02:58]}  g6 {[%clk 0:02:59]} 7. Nf3 {[%clk 0:02:58]}  Bg7 {[%clk 0:02:59]} 8. Bg2 {[%clk 0:02:59]}  O-O {[%clk 0:03:00]} 9. O-O {[%clk 0:03:00]}  a6 {[%clk 0:03:00]} 10. a4 {[%clk 0:02:59]}  Re8 {[%clk 0:03:01]} 11. Re1 {[%clk 0:02:59]}  Nbd7 {[%clk 0:02:59]} 12. Bf4 {[%clk 0:02:53]}  Qc7 {[%clk 0:02:58]} 13. Rc1 {[%clk 0:02:51]}  Nh5 {[%clk 0:02:57]} 14. Bg5 {[%clk 0:02:46]}  Rb8 {[%clk 0:02:40]} 15. a5 {[%clk 0:02:27]}  Qxa5 {[%clk 0:02:30]} 16. e4 {[%clk 0:02:19]}  b5 {[%clk 0:02:21]} 17. Nd2 {[%clk 0:02:19]}  c4 {[%clk 0:02:14]} 18. g4 {[%clk 0:02:04]}  Nhf6 {[%clk 0:02:03]} 19. Bf4 {[%clk 0:01:58]}  Qc7 {[%clk 0:01:38]} 20. e5 {[%clk 0:01:39]}  Nxe5 {[%clk 0:01:31]} 21. h3 {[%clk 0:01:18]}  Bb7 {[%clk 0:01:22]} 22. Bxe5 {[%clk 0:01:06]}  Rxe5 {[%clk 0:01:20]} 23. Rxe5 {[%clk 0:01:03]}  dxe5 {[%clk 0:01:21]} 24. g5 {[%clk 0:01:00]}  Nd7 {[%clk 0:01:06]} 25. Nde4 {[%clk 0:00:57]}  Qb6 {[%clk 0:01:00]} 26. Rc2 {[%clk 0:00:38]}  Rc8 {[%clk 0:00:59]} 27. Rd2 {[%clk 0:00:27]}  Rd8 {[%clk 0:00:56]} 28. Ne2 {[%clk 0:00:23]}  f5 {[%clk 0:00:52]} 29. gxf6 {[%clk 0:00:23]}  Nxf6 {[%clk 0:00:52]} 30. Ng5 {[%clk 0:00:23]}  Rd6 {[%clk 0:00:32]} 31. Nc3 {[%clk 0:00:22]}  h6 {[%clk 0:00:27]} 32. Ne6 {[%clk 0:00:17]}  Rxe6 {[%clk 0:00:18]} 33. dxe6 {[%clk 0:00:17]}  Bxg2 {[%clk 0:00:18]} 34. Kxg2 {[%clk 0:00:18]}  Qxe6 {[%clk 0:00:18]} 35. Rd8+ {[%clk 0:00:18]}  Kh7 {[%clk 0:00:18]} 36. Rd6 {[%clk 0:00:17]}  Qf5 {[%clk 0:00:15]} 37. Ne2 {[%clk 0:00:15]}  Ne4 {[%clk 0:00:11]} 38. f3 {[%clk 0:00:13]}  Nxd6 {[%clk 0:00:11]} 39. Qxd6 {[%clk 0:00:13]}  Qd3 {[%clk 0:00:11]} 40. Qxd3 {[%clk 0:00:08]}  cxd3 {[%clk 0:00:11]} 41. Nc3 {[%clk 0:00:06]}  d2 {[%clk 0:00:11]} 42. Nd1 {[%clk 0:00:06]}  h5 {[%clk 0:00:07]} 43. Kf2 {[%clk 0:00:06]}  Bh6 {[%clk 0:00:07]} 44. Ke2 {[%clk 0:00:06]}  Kg7 {[%clk 0:00:08]} 45. Kd3 {[%clk 0:00:07]}  Kf6 {[%clk 0:00:08]} 46. Ke4 {[%clk 0:00:07]}  Ke6 {[%clk 0:00:08]} 47. b3 {[%clk 0:00:07]}  a5 {[%clk 0:00:08]} 48. Nc3 {[%clk 0:00:08]}  a4 {[%clk 0:00:08]} 49. bxa4 {[%clk 0:00:06]}  bxa4 {[%clk 0:00:09]} 50. Kd3 {[%clk 0:00:06]}  a3 {[%clk 0:00:09]} 51. Kc2 {[%clk 0:00:06]}  Kd6 {[%clk 0:00:07]} 52. Nb5+ {[%clk 0:00:05]}  Kc5 {[%clk 0:00:06]} 53. Nxa3 {[%clk 0:00:05]}  Kd4 {[%clk 0:00:06]} 54. Kd1 {[%clk 0:00:03]}  Ke3 {[%clk 0:00:05]} 55. Nc4+ {[%clk 0:00:04]}  Kxf3 {[%clk 0:00:04]} 56. Nxe5+ {[%clk 0:00:04]}  Kg3 {[%clk 0:00:04]} 57. Nxg6 {[%clk 0:00:05]}  Kxh3 {[%clk 0:00:04]} 58. Ne7 {[%clk 0:00:02]}  Bg5 {[%clk 0:00:02]} 59. Nd5 {[%clk 0:00:02]}  Kg2 {[%clk 0:00:01]} 60. Nc3 {[%clk 0:00:03]} 1/2-1/2


[Site "https://www.chess.com"]

[Event "Titled Tuesday Blitz April 19 Late 2022"]
[White "Bibasa, Bob"]
[Black "Rosenberg, Evan S"]
[WhiteFideId "10000240"]
[BlackFideId "2019299"]
[WhiteElo "2056"]
[BlackElo "2359"]
[Result "1-0"]
[Round "08"]
[TimeControl "180+1"]
[Date "2022.04.19"]
[WhiteClock "0:01:00"]
[BlackClock "0:00:01"]

1. e4 {[%clk 0:02:57]}  e5 {[%clk 0:02:59]} 2. Nf3 {[%clk 0:02:57]}  Nc6 {[%clk 0:03:00]} 3. Bc4 {[%clk 0:02:56]}  Bc5 {[%clk 0:02:58]} 4. c3 {[%clk 0:02:56]}  Nf6 {[%clk 0:02:58]} 5. d3 {[%clk 0:02:57]}  O-O {[%clk 0:02:52]} 6. O-O {[%clk 0:02:55]}  d5 {[%clk 0:02:52]} 7. exd5 {[%clk 0:02:53]}  Nxd5 {[%clk 0:02:53]} 8. Nbd2 {[%clk 0:02:53]}  Bf5 {[%clk 0:02:30]} 9. Ne4 {[%clk 0:02:51]}  Bxe4 {[%clk 0:02:11]} 10. dxe4 {[%clk 0:02:50]}  Nb6 {[%clk 0:02:09]} 11. Bb3 {[%clk 0:02:49]}  h6 {[%clk 0:01:50]} 12. Bd5 {[%clk 0:02:36]}  Qf6 {[%clk 0:01:42]} 13. Bxc6 {[%clk 0:02:34]}  bxc6 {[%clk 0:01:41]} 14. Qe2 {[%clk 0:02:32]}  a5 {[%clk 0:01:35]} 15. Be3 {[%clk 0:02:32]}  Bxe3 {[%clk 0:01:33]} 16. Qxe3 {[%clk 0:02:32]}  Nc4 {[%clk 0:01:33]} 17. Qe2 {[%clk 0:02:32]}  Nd6 {[%clk 0:01:29]} 18. Rfd1 {[%clk 0:02:25]}  Rfb8 {[%clk 0:01:27]} 19. b3 {[%clk 0:02:24]}  a4 {[%clk 0:01:27]} 20. b4 {[%clk 0:02:24]}  a3 {[%clk 0:01:27]} 21. Nd2 {[%clk 0:02:16]}  Qe6 {[%clk 0:01:22]} 22. Nb3 {[%clk 0:02:16]}  Qc4 {[%clk 0:01:18]} 23. Qxc4 {[%clk 0:02:16]}  Nxc4 {[%clk 0:01:18]} 24. Rd7 {[%clk 0:02:16]}  Ra7 {[%clk 0:01:11]} 25. f3 {[%clk 0:02:11]}  Kf8 {[%clk 0:00:59]} 26. Rad1 {[%clk 0:02:09]}  Ke8 {[%clk 0:00:53]} 27. Kf2 {[%clk 0:01:54]}  Nb6 {[%clk 0:00:26]} 28. R7d3 {[%clk 0:01:47]}  Na4 {[%clk 0:00:26]} 29. R1d2 {[%clk 0:01:35]}  c5 {[%clk 0:00:18]} 30. bxc5 {[%clk 0:01:31]}  Rxb3 {[%clk 0:00:15]} 31. axb3 {[%clk 0:01:29]}  Nxc5 {[%clk 0:00:16]} 32. Rd8+ {[%clk 0:01:29]}  Ke7 {[%clk 0:00:16]} 33. R8d5 {[%clk 0:01:29]}  Nxb3 {[%clk 0:00:14]} 34. Ra2 {[%clk 0:01:27]}  Nc1 {[%clk 0:00:14]} 35. Ra1 {[%clk 0:01:27]}  a2 {[%clk 0:00:13]} 36. Rxc1 {[%clk 0:01:24]}  a1=Q {[%clk 0:00:13]} 37. Rxa1 {[%clk 0:01:24]}  Rxa1 {[%clk 0:00:13]} 38. Rxe5+ {[%clk 0:01:25]}  Kd6 {[%clk 0:00:14]} 39. Rd5+ {[%clk 0:01:25]}  Ke6 {[%clk 0:00:14]} 40. c4 {[%clk 0:01:25]}  Ra2+ {[%clk 0:00:13]} 41. Kg3 {[%clk 0:01:25]}  Rc2 {[%clk 0:00:13]} 42. c5 {[%clk 0:01:23]}  g6 {[%clk 0:00:09]} 43. h4 {[%clk 0:01:23]}  f5 {[%clk 0:00:09]} 44. h5 {[%clk 0:01:07]}  fxe4 {[%clk 0:00:08]} 45. fxe4 {[%clk 0:01:07]}  g5 {[%clk 0:00:07]} 46. Kf3 {[%clk 0:01:06]}  Rc3+ {[%clk 0:00:06]} 47. Ke2 {[%clk 0:01:04]}  Rc2+ {[%clk 0:00:06]} 48. Kf3 {[%clk 0:01:02]}  Rc3+ {[%clk 0:00:06]} 49. Kf2 {[%clk 0:01:02]}  Rc2+ {[%clk 0:00:05]} 50. Kg3 {[%clk 0:01:02]}  Rc3+ {[%clk 0:00:05]} 51. Kg4 {[%clk 0:01:03]}  Re3 {[%clk 0:00:03]} 52. Rd4 {[%clk 0:01:00]}  Ke5 {[%clk 0:00:02]} 53. Rd7 {[%clk 0:00:59]}  Rxe4+ {[%clk 0:00:02]} 54. Kf3 {[%clk 0:00:59]}  Rf4+ {[%clk 0:00:01]} 55. Kg3 {[%clk 0:01:00]} 1-0


[Site "https://www.chess.com"]

[Event "Titled Tuesday Blitz April 19 Late 2022"]
[White "Bongo Akanga Ndjila, Barthelemy"]
[Black "Burke, Paul"]
[WhiteFideId "10609431"]
[BlackFideId "2605767"]
[WhiteElo "1768"]
[BlackElo "1876"]
[Result "1/2-1/2"]
[Round "08"]
[TimeControl "180+1"]
[Date "2022.04.19"]
[WhiteClock "0:00:25"]
[BlackClock "0:00:25"]

1. d4 {[%clk 0:03:00]}  Nf6 {[%clk 0:02:59]} 2. c4 {[%clk 0:02:59]}  c5 {[%clk 0:02:59]} 3. d5 {[%clk 0:02:57]}  Ne4 {[%clk 0:02:59]} 4. Nf3 {[%clk 0:02:54]}  Qa5+ {[%clk 0:02:57]} 5. Nbd2 {[%clk 0:02:51]}  d6 {[%clk 0:02:56]} 6. g3 {[%clk 0:02:51]}  g6 {[%clk 0:02:53]} 7. Bg2 {[%clk 0:02:51]}  Bg7 {[%clk 0:02:50]} 8. O-O {[%clk 0:02:51]}  Nf6 {[%clk 0:02:50]} 9. Nb3 {[%clk 0:02:43]}  Qd8 {[%clk 0:02:50]} 10. Qc2 {[%clk 0:02:35]}  Bf5 {[%clk 0:02:44]} 11. Qd1 {[%clk 0:02:31]}  O-O {[%clk 0:02:43]} 12. Nh4 {[%clk 0:02:29]}  Bd7 {[%clk 0:02:41]} 13. e4 {[%clk 0:02:23]}  Qc8 {[%clk 0:02:38]} 14. Re1 {[%clk 0:02:15]}  Bh3 {[%clk 0:02:29]} 15. Bh1 {[%clk 0:02:15]}  Ng4 {[%clk 0:02:26]} 16. f3 {[%clk 0:02:09]}  Ne5 {[%clk 0:02:22]} 17. Qe2 {[%clk 0:02:06]}  a5 {[%clk 0:02:08]} 18. Be3 {[%clk 0:02:01]}  a4 {[%clk 0:02:06]} 19. Nd2 {[%clk 0:01:59]}  Na6 {[%clk 0:01:58]} 20. a3 {[%clk 0:01:55]}  Nc7 {[%clk 0:01:51]} 21. Bg5 {[%clk 0:01:53]}  Re8 {[%clk 0:01:44]} 22. Ng2 {[%clk 0:01:42]}  Bd7 {[%clk 0:01:36]} 23. Be3 {[%clk 0:01:34]}  b5 {[%clk 0:01:34]} 24. Rac1 {[%clk 0:01:28]}  bxc4 {[%clk 0:01:33]} 25. Nxc4 {[%clk 0:01:11]}  Nxc4 {[%clk 0:01:32]} 26. Qxc4 {[%clk 0:01:08]}  Bxb2 {[%clk 0:01:29]} 27. Rb1 {[%clk 0:00:59]}  Bxa3 {[%clk 0:01:19]} 28. Qc3 {[%clk 0:00:52]}  Bb4 {[%clk 0:01:14]} 29. Rxb4 {[%clk 0:00:52]}  cxb4 {[%clk 0:01:14]} 30. Qxb4 {[%clk 0:00:53]}  Rb8 {[%clk 0:01:08]} 31. Qd4 {[%clk 0:00:44]}  Nb5 {[%clk 0:01:04]} 32. Qd1 {[%clk 0:00:40]}  Nc3 {[%clk 0:00:48]} 33. Qd2 {[%clk 0:00:35]}  Rb3 {[%clk 0:00:46]} 34. Bh6 {[%clk 0:00:34]}  Qc5+ {[%clk 0:00:35]} 35. Ne3 {[%clk 0:00:32]}  Nb1 {[%clk 0:00:28]} 36. Qd1 {[%clk 0:00:27]}  Nc3 {[%clk 0:00:27]} 37. Qd2 {[%clk 0:00:26]}  Nb1 {[%clk 0:00:26]} 38. Qd1 {[%clk 0:00:25]}  Nc3 {[%clk 0:00:25]} 39. Qd2 {[%clk 0:00:25]} 1/2-1/2


[Site "https://www.chess.com"]